fUST/lending_fUST_20250902
["ID","MTS","AMOUNT","RATE_DAILY","PERIOD"]
[382822634,1756744253052,-657.34,0.0001452,2]
[382822635,1756744253061,-480.0,0.0001452,2]
[382822636,1756744253074,-480.0,0.0001452,2]
[382822637,1756744253083,-480.0,0.0001452,2]
[382822638,1756744253092,-868.69,0.0001452,2]
[382822639,1756744253101,-683.94,0.0001452,2]
[382822640,1756744253110,-631.39,0.0001452,2]
[382822641,1756744253120,-1678.19,0.0001452,2]
[382822642,1756744253129,-937.14,0.0001452,2]
[382822643,1756744253142,-699.73,0.0001452,2]
[382822644,1756744253152,-1696.71,0.0001452,2]
[382822645,1756744253162,-480.0,0.0001452,2]
[382822646,1756744253171,-2278.92,0.0001452,2]
[382822647,1756744253180,-480.0,0.0001452,2]
[382822648,1756744253190,-575.95,0.0001452,2]
[382822649,1756744253199,-480.0,0.0001452,2]
[382822650,1756744253208,-507.82,0.0001452,2]
[382822651,1756744253218,-593.6,0.0001452,2]
[382822652,1756744253227,-480.0,0.0001452,2]
[382822653,1756744253236,-480.0,0.0001452,2]
[382822654,1756744253245,-1000.0,0.00014521,2]
[382822655,1756744253254,-1000.0,0.00014521,2]
[382822656,1756744253263,-1000.0,0.00014521,2]
[382822657,1756744253273,-1000.0,0.00014521,2]
[382822658,1756744253282,-1000.0,0.00014521,2]
[382822659,1756744253291,-1000.0,0.00014521,2]
[382822660,1756744253300,-1000.0,0.00014521,2]
[382822661,1756744253309,-562.38897382,0.00014521,2]
[382822662,1756744253318,-590.64883813,0.00014521,2]
[382822663,1756744253327,-1000.0,0.00014521,2]
[382822664,1756744253336,-1000.0,0.00014521,2]
[382822665,1756744253345,-1000.0,0.00014521,2]
[382822666,1756744253403,-1000.0,0.00014521,2]
[382822667,1756744253413,-168.0,0.0001455,2]
[382822668,1756744253422,-168.0,0.00014599,2]
[382822669,1756744253432,-389.0,0.00014633,2]
[382822670,1756744253440,-1000.0,0.000147,3]
[382822671,1756744253449,-168.0,0.00014705,2]
[382822672,1756744253458,-168.0,0.00014761,2]
[382822673,1756744253468,-1500.0,0.00014768,2]
[382822674,1756744253477,-1500.0,0.00014768,2]
[382822675,1756744253485,-1500.0,0.00014768,2]
[382822676,1756744253495,-1500.0,0.00014768,2]
[382822677,1756744253503,-1500.0,0.00014768,2]
[382822678,1756744253512,-1500.0,0.00014768,2]
[382822679,1756744253522,-1000.0,0.0001478,2]
[382822680,1756744253531,-151.0,0.00014786,2]
[382822681,1756744253541,-1000.0,0.00014786,2]
[382822683,1756744253551,-1089.12503387,0.00014786,2]
[382822684,1756744253561,-1000.0,0.00014786,2]
[382822685,1756744253571,-1680.0,0.00014791,2]
[382822686,1756744253580,-420.0,0.00014791,2]
[382822687,1756744253590,-420.0,0.00014791,2]
[382822688,1756744253599,-151.0,0.00014794,2]
[382822689,1756744253610,-860.0,0.00014794,2]
[382822690,1756744253619,-480.0,0.00014794,2]
[382822691,1756744253628,-625.82,0.00014794,2]
[382822692,1756744253638,-480.0,0.00014794,2]
[382822693,1756744253648,-480.0,0.00014794,2]
[382822694,1756744253657,-480.0,0.00014794,2]
[382822695,1756744253667,-568.85,0.00014794,2]
[382822696,1756744253676,-480.0,0.00014794,2]
[382822697,1756744253685,-480.0,0.00014794,2]
[382822698,1756744253695,-480.0,0.00014794,2]
[382822699,1756744253705,-480.0,0.00014794,2]
[382822700,1756744253715,-480.0,0.00014794,2]
[382822701,1756744253725,-480.0,0.00014794,2]
[382822702,1756744253734,-597.76,0.00014794,2]
[382822703,1756744253744,-480.0,0.00014794,2]
[382822704,1756744253753,-571.14065777,0.00014794,2]
[382822705,1756744253763,-480.0,0.00014794,2]
[382822706,1756744253772,-480.0,0.00014794,2]
[382822707,1756744253781,-480.0,0.00014794,2]
[382822708,1756744253791,-480.0,0.00014794,2]
[382822709,1756744253800,-480.0,0.00014794,2]
[382822710,1756744253810,-480.0,0.00014794,2]
[382822711,1756744253819,-480.0,0.00014794,2]
[382822712,1756744253828,-602.69,0.00014794,2]
[382822713,1756744253838,-519.62,0.00014794,2]
[382822714,1756744253848,-480.0,0.00014794,2]
[382822715,1756744253858,-480.0,0.00014794,2]
[382822716,1756744253867,-480.0,0.00014794,2]
[382822717,1756744253877,-524.62,0.00014794,2]
[382822718,1756744253887,-480.0,0.00014794,2]
[382822719,1756744253896,-480.0,0.00014794,2]
[382822720,1756744253906,-827.02,0.00014794,2]
[382822721,1756744253916,-740.47,0.00014794,2]
[382822722,1756744253926,-480.0,0.00014794,2]
[382822723,1756744253936,-480.0,0.00014794,2]
[382822724,1756744253945,-600.11,0.00014794,2]
[382822725,1756744253955,-628.88,0.00014794,2]
[382822726,1756744253964,-480.0,0.00014794,2]
[382822727,1756744253974,-480.0,0.00014794,2]
[382822728,1756744253983,-480.0,0.00014794,2]
[382822729,1756744253993,-480.0,0.00014794,2]
[382822730,1756744254003,-480.0,0.00014794,2]
[382822731,1756744254013,-637.89,0.00014794,2]
[382822732,1756744254023,-480.0,0.00014794,2]
[382822733,1756744254032,-480.0,0.00014794,2]
[382822735,1756744254043,-480.0,0.00014794,2]
[382822737,1756744254052,-524.86,0.00014794,2]
[382822739,1756744254061,-480.0,0.00014794,2]
[382822741,1756744254075,-480.0,0.00014794,2]
[382822743,1756744254084,-480.0,0.00014794,2]
[382822745,1756744254093,-480.0,0.00014794,2]
[382822747,1756744254103,-480.0,0.00014794,2]
[382822749,1756744254112,-679.02,0.00014794,2]
[382822751,1756744254123,-480.0,0.00014794,2]
[382822753,1756744254133,-989.05,0.00014794,2]
[382822755,1756744254143,-480.0,0.00014794,2]
[382822757,1756744254152,-480.0,0.00014794,2]
[382822759,1756744254162,-666.02,0.00014794,2]
[382822761,1756744254172,-480.0,0.00014794,2]
[382822763,1756744254181,-758.2,0.00014794,2]
[382822765,1756744254190,-480.0,0.00014794,2]
[382822767,1756744254199,-480.0,0.00014794,2]
[382822769,1756744254209,-480.0,0.00014794,2]
[382822771,1756744254218,-660.28,0.00014794,2]
[382822773,1756744254228,-480.0,0.00014794,2]
[382822775,1756744254237,-159.58707423,0.00014794,2]
[382822777,1756744254247,-660.95,0.00014794,2]
[382822779,1756744254256,-480.0,0.00014794,2]
[382822781,1756744254265,-597.19665519,0.00014794,2]
[382822783,1756744254274,-480.0,0.00014794,2]
[382822785,1756744254283,-480.0,0.00014794,2]
[382822787,1756744254292,-575.14,0.00014794,2]
[382822788,1756744254302,-480.0,0.00014794,2]
[382822789,1756744254313,-480.0,0.00014794,2]
[382822790,1756744254323,-480.0,0.00014794,2]
[382822791,1756744254332,-480.0,0.00014794,2]
[382822792,1756744254342,-480.0,0.00014794,2]
[382822793,1756744254351,-480.0,0.00014794,2]
[382822794,1756744254361,-883.17,0.00014794,2]
[382822795,1756744254370,-622.37,0.00014794,2]
[382822796,1756744254379,-697.95,0.00014794,2]
[382822797,1756744254389,-480.0,0.00014794,2]
[382822798,1756744254399,-480.0,0.00014794,2]
[382822799,1756744254409,-520.98,0.00014794,2]
[382822800,1756744254418,-377.00473543,0.00014794,2]
[382822801,1756744254427,-540.8,0.00014794,2]
[382822802,1756744254437,-809.03,0.00014794,2]
[382822803,1756744254446,-432.92631507,0.00014794,2]
[382822804,1756744254455,-480.0,0.00014794,2]
[382822805,1756744254464,-480.0,0.00014794,2]
[382822806,1756744254474,-490.3,0.00014794,2]
[382822807,1756744254485,-480.0,0.00014794,2]
[382822808,1756744254495,-823.25,0.00014794,2]
[382822809,1756744254504,-480.0,0.00014794,2]
[382822810,1756744254519,-2690.39,0.00014794,2]
[382822811,1756744254528,-529.02,0.00014794,2]
[382822812,1756744254538,-411.78168994,0.00014794,2]
[382822813,1756744254548,-653.95,0.00014794,2]
[382822814,1756744254558,-480.0,0.00014794,2]
[382822815,1756744254568,-691.13,0.00014794,2]
[382822816,1756744254579,-480.0,0.00014794,2]
[382822817,1756744254589,-889.13,0.00014794,2]
[382822818,1756744254598,-550.96,0.00014794,2]
[382822819,1756744254608,-3291.17,0.00014794,2]
[382822820,1756744254617,-480.0,0.00014794,2]
[382822821,1756744254629,-480.0,0.00014794,2]
[382822822,1756744254638,-980.91,0.00014794,2]
[382822823,1756744254648,-1435.73,0.00014794,2]
[382822824,1756744254658,-826.43,0.00014794,2]
[382822825,1756744254667,-711.94,0.00014794,2]
[382822826,1756744254677,-505.64,0.00014794,2]
[382822827,1756744254687,-480.0,0.00014794,2]
[382822828,1756744254696,-580.81,0.00014794,2]
[382822830,1756744254706,-1011.63,0.00014794,2]
[382822832,1756744254715,-735.35,0.00014794,2]
[382822834,1756744254724,-480.0,0.00014794,2]
[382822836,1756744254734,-620.15,0.00014794,2]
[382822838,1756744254743,-748.52,0.00014794,2]
[382822840,1756744254753,-987.13,0.00014794,2]
[382822842,1756744254762,-480.0,0.00014794,2]
[382822844,1756744254771,-480.0,0.00014794,2]
[382822846,1756744254781,-480.0,0.00014794,2]
[382822848,1756744254791,-282.40618693,0.00014794,2]
[382822850,1756744254800,-509.81,0.00014794,2]
[382822852,1756744254810,-742.54,0.00014794,2]
[382822854,1756744254819,-516.48,0.00014794,2]
[382822856,1756744254829,-1018.7,0.00014794,2]
[382822858,1756744254839,-692.45,0.00014794,2]
[382822860,1756744254848,-958.63,0.00014794,2]
[382822862,1756744254858,-480.0,0.00014794,2]
[382822864,1756744254868,-480.0,0.00014794,2]
[382822866,1756744254879,-7405.63,0.00014794,2]
[382822868,1756744254889,-2050.19,0.00014794,2]
[382822870,1756744254899,-944.77,0.00014794,2]
[382822872,1756744254909,-480.0,0.00014794,2]
[382822874,1756744254919,-370.08583587,0.00014794,2]
[382822877,1756744254929,-480.0,0.00014794,2]
[382822879,1756744254939,-2111.22,0.00014794,2]
[382822881,1756744254948,-937.65,0.00014794,2]
[382822882,1756744254958,-480.0,0.00014794,2]
[382822884,1756744254967,-1042.95,0.00014794,2]
[382822886,1756744254977,-4804.28,0.00014794,2]
[382822888,1756744254987,-480.0,0.00014794,2]
[382822891,1756744254997,-480.0,0.00014794,2]
[382822893,1756744255008,-799.55,0.00014794,2]
[382822895,1756744255018,-2331.89,0.00014794,2]
[382822897,1756744255027,-480.0,0.00014794,2]
[382822899,1756744255037,-835.66,0.00014794,2]
[382822901,1756744255047,-860.55,0.00014794,2]
[382822903,1756744255056,-480.0,0.00014794,2]
[382822905,1756744255067,-817.93,0.00014794,2]
[382822907,1756744255078,-638.27,0.00014794,2]
[382822909,1756744255089,-1672.33,0.00014794,2]
[382822911,1756744255099,-480.0,0.00014794,2]
[382822912,1756744255110,-1015.15,0.00014794,2]
[382822915,1756744255122,-605.87176536,0.00014794,2]
[382822918,1756744255145,-68.57823464,0.00014794,2]
[382822920,1756744255155,-480.0,0.00014794,2]
[382822922,1756744255165,-480.0,0.00014794,2]
[382822924,1756744255175,-577.98,0.00014794,2]
[382822926,1756744255186,-480.0,0.00014794,2]
[382822928,1756744255195,-4235.96,0.00014794,2]
[382822930,1756744255205,-480.0,0.00014794,2]
[382822931,1756744255214,-480.0,0.00014794,2]
[382822933,1756744255224,-652.99,0.00014794,2]
[382822935,1756744255233,-480.0,0.00014794,2]
[382822937,1756744255243,-480.0,0.00014794,2]
[382822939,1756744255252,-480.0,0.00014794,2]
[382822941,1756744255262,-1388.11,0.00014794,2]
[382822943,1756744255272,-480.0,0.00014794,2]
[382822945,1756744255282,-683.05,0.00014794,2]
[382822947,1756744255291,-491.99,0.00014794,2]
[382822949,1756744255301,-480.0,0.00014794,2]
[382822951,1756744255310,-597.56,0.00014794,2]
[382822953,1756744255320,-480.0,0.00014794,2]
[382822955,1756744255329,-685.92,0.00014794,2]
[382822958,1756744255339,-2054.12,0.00014794,2]
[382822959,1756744255349,-657.34,0.00014794,2]
[382822962,1756744255359,-480.0,0.00014794,2]
[382822964,1756744255368,-480.0,0.00014794,2]
[382822965,1756744255382,-480.0,0.00014794,2]
[382822967,1756744255392,-868.69,0.00014794,2]
[382822969,1756744255402,-683.94,0.00014794,2]
[382822971,1756744255412,-631.39,0.00014794,2]
[382822973,1756744255421,-1678.19,0.00014794,2]
[382822975,1756744255431,-937.14,0.00014794,2]
[382822977,1756744255440,-699.73,0.00014794,2]
[382822980,1756744255450,-1696.71,0.00014794,2]
[382822982,1756744255460,-480.0,0.00014794,2]
[382822984,1756744255470,-2278.92,0.00014794,2]
[382822985,1756744255480,-480.0,0.00014794,2]
[382822987,1756744255490,-575.95,0.00014794,2]
[382822989,1756744255500,-480.0,0.00014794,2]
[382822991,1756744255509,-507.82,0.00014794,2]
[382822994,1756744255519,-593.6,0.00014794,2]
[382822995,1756744255529,-480.0,0.00014794,2]
[382822997,1756744255538,-480.0,0.00014794,2]
[382822999,1756744255547,-1680.0,0.00014843,2]
[382823001,1756744255557,-584.29076827,0.000149,2]
[382823004,1756744255567,-5115.00719276,0.00014913,2]
[382823005,1756744255576,-500.0,0.00014915,2]
[382823007,1756744255586,-1089.60060091,0.00015,2]
[382823009,1756744255595,-220.68,0.00015,2]
[382823011,1756744255604,-10000.35061907,0.00015,2]
[382823013,1756744255615,-160.0,0.00015,2]
[382823015,1756744255626,-1000.70079059,0.00015,2]
[382823017,1756744255636,-168.0,0.0001504,2]
[382823019,1756744255646,-245.0,0.00015068,2]
[382823021,1756744255655,-860.0,0.00015068,2]
[382823023,1756744255665,-480.0,0.00015068,2]
[382823025,1756744255675,-625.82,0.00015068,2]
[382823027,1756744255685,-480.0,0.00015068,2]
[382823029,1756744255695,-480.0,0.00015068,2]
[382823031,1756744255706,-480.0,0.00015068,2]
[382823033,1756744255715,-568.85,0.00015068,2]
[382823035,1756744255724,-480.0,0.00015068,2]
[382823037,1756744255734,-480.0,0.00015068,2]
[382823040,1756744255744,-480.0,0.00015068,2]
[382823042,1756744255754,-150.0,0.00015068,2]
[382823044,1756744255764,-480.0,0.00015068,2]
[382823046,1756744255773,-480.0,0.00015068,2]
[382823048,1756744255783,-480.0,0.00015068,2]
[382823050,1756744255793,-597.76,0.00015068,2]
[382823052,1756744255803,-480.0,0.00015068,2]
[382823054,1756744255813,-480.0,0.00015068,2]
[382823056,1756744255822,-480.0,0.00015068,2]
[382823058,1756744255832,-480.0,0.00015068,2]
[382823060,1756744255842,-480.0,0.00015068,2]
[382823062,1756744255851,-480.0,0.00015068,2]
[382823064,1756744255861,-480.0,0.00015068,2]
[382823066,1756744255873,-480.0,0.00015068,2]
[382823068,1756744255882,-602.69,0.00015068,2]
[382823070,1756744255893,-519.62,0.00015068,2]
[382823072,1756744255903,-480.0,0.00015068,2]
[382823074,1756744255913,-480.0,0.00015068,2]
[382823076,1756744255923,-480.0,0.00015068,2]
[382823078,1756744255933,-524.62,0.00015068,2]
[382823080,1756744255942,-480.0,0.00015068,2]
[382823082,1756744255952,-480.0,0.00015068,2]
[382823084,1756744255962,-827.02,0.00015068,2]
[382823086,1756744255972,-740.47,0.00015068,2]
[382823088,1756744255982,-480.0,0.00015068,2]
[382823090,1756744255992,-480.0,0.00015068,2]
[382823092,1756744256003,-600.11,0.00015068,2]
[382823094,1756744256012,-628.88,0.00015068,2]
[382823096,1756744256022,-480.0,0.00015068,2]
[382823098,1756744256033,-480.0,0.00015068,2]
[382823100,1756744256043,-436.48790331,0.00015068,2]
[382823102,1756744256053,-480.0,0.00015068,2]
[382823104,1756744256064,-480.0,0.00015068,2]
[382823106,1756744256077,-637.89,0.00015068,2]
[382823108,1756744256087,-480.0,0.00015068,2]
[382823110,1756744256097,-480.0,0.00015068,2]
[382823112,1756744256107,-480.0,0.00015068,2]
[382823114,1756744256116,-524.86,0.00015068,2]
[382823116,1756744256126,-480.0,0.00015068,2]
[382823118,1756744256135,-480.0,0.00015068,2]
[382823120,1756744256147,-480.0,0.00015068,2]
[382823122,1756744256157,-480.0,0.00015068,2]
[382823124,1756744256166,-480.0,0.00015068,2]
[382823126,1756744256176,-679.02,0.00015068,2]
[382823128,1756744256186,-480.0,0.00015068,2]
[382823130,1756744256196,-989.05,0.00015068,2]
[382823132,1756744256206,-480.0,0.00015068,2]
[382823134,1756744256215,-480.0,0.00015068,2]
[382823136,1756744256225,-666.02,0.00015068,2]
[382823138,1756744256235,-480.0,0.00015068,2]
[382823140,1756744256244,-758.2,0.00015068,2]
[382823142,1756744256254,-480.0,0.00015068,2]
[382823145,1756744256264,-480.0,0.00015068,2]
[382823147,1756744256273,-480.0,0.00015068,2]
[382823148,1756744256284,-660.28,0.00015068,2]
[382823151,1756744256295,-480.0,0.00015068,2]
[382823152,1756744256304,-660.95,0.00015068,2]
[382823155,1756744256314,-480.0,0.00015068,2]
[382823157,1756744256324,-480.0,0.00015068,2]
[382823158,1756744256333,-480.0,0.00015068,2]
[382823160,1756744256343,-575.14,0.00015068,2]
[382823163,1756744256354,-480.0,0.00015068,2]
[382823164,1756744256364,-480.0,0.00015068,2]
[382823166,1756744256375,-480.0,0.00015068,2]
[382823168,1756744256384,-480.0,0.00015068,2]
[382823170,1756744256394,-480.0,0.00015068,2]
[382823173,1756744256406,-480.0,0.00015068,2]
[382823174,1756744256416,-883.17,0.00015068,2]
[382823177,1756744256426,-622.37,0.00015068,2]
[382823179,1756744256436,-697.95,0.00015068,2]
[382823181,1756744256446,-480.0,0.00015068,2]
[382823183,1756744256455,-480.0,0.00015068,2]
[382823185,1756744256465,-520.98,0.00015068,2]
[382823187,1756744256475,-540.8,0.00015068,2]
[382823189,1756744256485,-809.03,0.00015068,2]
[382823191,1756744256494,-480.0,0.00015068,2]
[382823193,1756744256504,-480.0,0.00015068,2]
[382823195,1756744256513,-490.3,0.00015068,2]
[382823196,1756744256523,-480.0,0.00015068,2]
[382823198,1756744256532,-823.25,0.00015068,2]
[382823200,1756744256543,-480.0,0.00015068,2]
[382823202,1756744256552,-2690.39,0.00015068,2]
[382823205,1756744256562,-529.02,0.00015068,2]
[382823206,1756744256572,-653.95,0.00015068,2]
[382823209,1756744256582,-480.0,0.00015068,2]
[382823211,1756744256592,-691.13,0.00015068,2]
[382823213,1756744256602,-480.0,0.00015068,2]
[382823215,1756744256611,-889.13,0.00015068,2]
[382823217,1756744256622,-550.96,0.00015068,2]
[382823219,1756744256632,-3291.17,0.00015068,2]
[382823221,1756744256642,-480.0,0.00015068,2]
[382823223,1756744256652,-533.90824466,0.00015068,2]
[382823225,1756744256662,-980.91,0.00015068,2]
[382823227,1756744256672,-1435.73,0.00015068,2]
[382823229,1756744256682,-826.43,0.00015068,2]
[382823231,1756744256692,-711.94,0.00015068,2]
[382823233,1756744256703,-505.64,0.00015068,2]
[382823235,1756744256715,-480.0,0.00015068,2]
[382823237,1756744256725,-580.81,0.00015068,2]
[382823239,1756744256735,-1011.63,0.00015068,2]
[382823241,1756744256745,-735.35,0.00015068,2]
[382823243,1756744256755,-480.0,0.00015068,2]
[382823245,1756744256765,-620.15,0.00015068,2]
[382823247,1756744256775,-748.52,0.00015068,2]
[382823249,1756744256784,-987.13,0.00015068,2]
[382823251,1756744256795,-480.0,0.00015068,2]
[382823253,1756744256804,-501.45,0.00015068,2]
[382823255,1756744256815,-480.0,0.00015068,2]
[382823258,1756744256825,-509.81,0.00015068,2]
[382823260,1756744256836,-742.54,0.00015068,2]
[382823262,1756744256846,-516.48,0.00015068,2]
[382823264,1756744256856,-1018.7,0.00015068,2]
[382823266,1756744256866,-692.45,0.00015068,2]
[382823268,1756744256877,-958.63,0.00015068,2]
[382823270,1756744256887,-480.0,0.00015068,2]
[382823272,1756744256896,-480.0,0.00015068,2]
[382823274,1756744256906,-7405.63,0.00015068,2]
[382823276,1756744256916,-2050.19,0.00015068,2]
[382823292,1756744257065,-944.77,0.00015068,2]
[382823293,1756744257077,-480.0,0.00015068,2]
[382823294,1756744257089,-480.0,0.00015068,2]
[382823295,1756744257099,-2111.22,0.00015068,2]
[382823296,1756744257108,-937.65,0.00015068,2]
[382823297,1756744257118,-480.0,0.00015068,2]
[382823298,1756744257127,-1042.95,0.00015068,2]
[382823299,1756744257137,-4804.28,0.00015068,2]
[382823300,1756744257147,-480.0,0.00015068,2]
[382823301,1756744257156,-458.97,0.00015068,2]
[382823302,1756744257165,-799.55,0.00015068,2]
[382823303,1756744257174,-2331.89,0.00015068,2]
[382823304,1756744257183,-361.76560957,0.00015068,2]
[382823305,1756744257192,-835.66,0.00015068,2]
[382823306,1756744257202,-860.55,0.00015068,2]
[382823307,1756744257211,-480.0,0.00015068,2]
[382823309,1756744257221,-817.93,0.00015068,2]
[382823311,1756744257231,-638.27,0.00015068,2]
[382823313,1756744257240,-1672.33,0.00015068,2]
[382823315,1756744257249,-480.0,0.00015068,2]
[382823317,1756744257259,-1015.15,0.00015068,2]
[382823319,1756744257268,-674.45,0.00015068,2]
[382823321,1756744257277,-480.0,0.00015068,2]
[382823323,1756744257287,-480.0,0.00015068,2]
[382823325,1756744257296,-205.38877222,0.00015068,2]
[382823363,1756744257647,-2715.12328229,0.00013699,2]
[382823365,1756744257657,-2815.58284374,0.00013754,2]
[382823367,1756744257666,-372.59122778,0.00015068,2]
[382823369,1756744257675,-469.3,0.00015068,2]
[382823371,1756744257685,-4235.96,0.00015068,2]
[382823373,1756744257694,-480.0,0.00015068,2]
[382823375,1756744257703,-480.0,0.00015068,2]
[382823377,1756744257713,-652.99,0.00015068,2]
[382823379,1756744257723,-488.57557535,0.00015068,2]
[382823381,1756744257732,-480.0,0.00015068,2]
[382823383,1756744257742,-480.0,0.00015068,2]
[382823385,1756744257751,-1388.11,0.00015068,2]
[382823387,1756744257760,-480.0,0.00015068,2]
[382823389,1756744257769,-683.05,0.00015068,2]
[382823391,1756744257779,-491.99,0.00015068,2]
[382823393,1756744257788,-480.0,0.00015068,2]
[382823395,1756744257798,-597.56,0.00015068,2]
[382823397,1756744257807,-685.92,0.00015068,2]
[382823399,1756744257817,-2054.12,0.00015068,2]
[382823401,1756744257826,-657.34,0.00015068,2]
[382823402,1756744257835,-480.0,0.00015068,2]
[382823404,1756744257845,-480.0,0.00015068,2]
[382823406,1756744257854,-480.0,0.00015068,2]
[382823408,1756744257863,-480.0,0.00015068,2]
[382823410,1756744257873,-868.69,0.00015068,2]
[382823412,1756744257882,-683.94,0.00015068,2]
[382823415,1756744257892,-631.39,0.00015068,2]
[382823417,1756744257902,-1678.19,0.00015068,2]
[382823419,1756744257912,-937.14,0.00015068,2]
[382823420,1756744257921,-699.73,0.00015068,2]
[382823422,1756744257930,-1696.71,0.00015068,2]
[382823424,1756744257940,-480.0,0.00015068,2]
[382823426,1756744257949,-2278.92,0.00015068,2]
[382823429,1756744257960,-480.0,0.00015068,2]
[382823431,1756744257970,-575.95,0.00015068,2]
[382823433,1756744257979,-480.0,0.00015068,2]
[382823435,1756744257989,-507.82,0.00015068,2]
[382823437,1756744257999,-593.6,0.00015068,2]
[382823439,1756744258008,-480.0,0.00015068,2]
[382823441,1756744258017,-480.0,0.00015068,2]
[382823443,1756744258027,-1500.0,0.00015068,2]
[382823445,1756744258037,-1500.0,0.00015068,2]
[382823447,1756744258047,-1500.0,0.00015068,2]
[382823449,1756744258056,-1500.0,0.00015068,2]
[382823451,1756744258070,-1500.0,0.00015068,2]
[382823453,1756744258082,-1500.0,0.00015068,2]
[382823455,1756744258094,-364.90184372,0.00015068,2]
[382823457,1756744258103,-1500.0,0.00015068,2]
[382823459,1756744258114,-1000.0,0.00015068,2]
[382823461,1756744258124,-1500.0,0.00015068,2]
[382823462,1756744258135,-1500.0,0.00015068,2]
[382823465,1756744258152,-2000.0,0.00015068,2]
[382823467,1756744258162,-300.0,0.00015095,5]
[382823468,1756744258172,-450.0,0.00015123,8]
[382823470,1756744258182,-168.0,0.00015131,2]
[382823473,1756744258191,-168.0,0.00015182,2]
[382823475,1756744258201,-3509.89,0.00015187,2]
[382823477,1756744258210,-588.29819717,0.00015218,2]
[382823479,1756744258220,-500.0,0.00015218,2]
[382823480,1756744258230,-4468.20569,0.00015223,2]
[382823483,1756744258239,-168.0,0.00015236,2]
[382823485,1756744258248,-160.0,0.0001525,2]
[382823486,1756744258259,-720.0,0.00015254,2]
[382823488,1756744258270,-764.97518271,0.00015316,2]
[382823491,1756744258280,-2000.0,0.00015316,2]
[382823492,1756744258289,-2000.0,0.00015316,2]
[382823494,1756744258299,-2000.0,0.00015316,2]
[382823496,1756744258308,-2000.0,0.00015316,2]
[382823498,1756744258318,-2000.0,0.00015316,2]
[382823501,1756744258328,-151.0,0.00015334,2]
[382823503,1756744258338,-1536.59822786,0.00015334,2]
[382823505,1756744258348,-1500.0,0.00015334,2]
[382823507,1756744258358,-6000.0,0.00015341,2]
[382823508,1756744258367,-860.0,0.00015342,2]
[382823511,1756744258379,-480.0,0.00015342,2]
[382823513,1756744258388,-625.82,0.00015342,2]
[382823515,1756744258398,-480.0,0.00015342,2]
[382823517,1756744258408,-480.0,0.00015342,2]
[382823518,1756744258418,-480.0,0.00015342,2]
[382823520,1756744258430,-568.85,0.00015342,2]
[382823522,1756744258439,-480.0,0.00015342,2]
[382823525,1756744258450,-480.0,0.00015342,2]
[382823527,1756744258461,-480.0,0.00015342,2]
[382823529,1756744258471,-480.0,0.00015342,2]
[382823531,1756744258480,-480.0,0.00015342,2]
[382823533,1756744258490,-252.74998796,0.00015342,2]